bitfinex/quotes_SOLUSD_20251212
["timestamp","ask_amount","ask_price","bid_price","bid_amount"]
[1765512078180,7.28969237,137.18,137.14,2.86164537]
[1765512078394,0.72,137.17,137.14,2.86164537]
[1765512079293,8.01037946,137.17,137.14,2.86164537]
[1765512079491,8.01037946,137.17,137.12,2.86164537]
[1765512079690,0.72,137.16,137.12,2.86164537]
[1765512079988,0.72,137.16,137.13,4.46673953]
[1765512080194,7.29037946,137.17,137.14,4.46673953]
[1765512080674,8.01037946,137.17,137.14,4.46673953]
[1765512081576,7.28973458,137.18,137.15,4.46673953]
[1765512082184,21.05638026,137.19,137.15,4.46673953]
[1765512082576,0.72,137.18,137.15,4.46673953]
[1765512082771,21.05638026,137.19,137.15,4.46673953]
[1765512083072,20.33638026,137.19,137.15,13.27668445]
[1765512083383,0.72,137.18,137.15,13.27668445]
[1765512084895,8.01000423,137.18,137.14,12.44673953]
[1765512085201,8.01000423,137.18,137.14,7.98]
[1765512085403,0.72,137.17,137.14,7.98]
[1765512085602,0.72,137.17,137.12,11.75926768]
[1765512085898,0.72,137.17,137.13,4.46673953]
[1765512086488,7.29075532,137.16,137.13,4.46673953]
[1765512087801,0.72,137.16,137.13,4.46673953]
[1765512088809,8.01108484,137.16,137.13,4.46673953]
[1765512089190,8.01108484,137.16,137.13,4.46659774]
[1765512090109,7.29108484,137.16,137.13,4.46659774]
[1765512090987,8.01108484,137.16,137.13,4.46659774]
[1765512092202,8.01108484,137.16,137.14,4.46659774]
[1765512092403,17.51368894,137.19,137.15,4.46659774]
[1765512092404,13.0470912,137.19,137.15,4.46659774]
[1765512092603,26.40205091,137.2,137.16,4.46659774]
[1765512092604,0.2,137.2,137.16,4.46659774]
[1765512092799,0.72,137.19,137.16,4.46659774]
[1765512092994,13.0470912,137.19,137.16,4.46659774]
[1765512093197,13.0470912,137.19,137.17,4.46659774]
[1765512093703,13.7670912,137.19,137.17,4.46659774]
[1765512093902,0.72,137.18,137.15,4.46659774]
[1765512094091,7.2902238,137.17,137.14,7.98]
[1765512094480,8.0102238,137.17,137.14,7.98]
[1765512098105,8.0102238,137.17,137.13,20.56877357]
[1765512098984,7.2902238,137.17,137.13,20.56877357]
[1765512099188,0.72,137.16,137.12,19.73929714]
[1765512099686,0.72,137.16,137.12,15.2726994]
[1765512100189,8.01085085,137.16,137.12,7.98]
[1765512100394,12.47744859,137.16,137.12,7.98]
[1765512100591,0.72,137.15,137.12,7.98]
[1765512102109,8.01130104,137.15,137.12,7.98]
[1765512102808,4.46659774,137.13,137.08,8.80994492]
[1765512103014,4.46659774,137.12,137.08,8.80994492]
[1765512103308,7.29341404,137.11,137.07,15.27535802]
[1765512103607,12.48001178,137.11,137.07,15.27535802]
[1765512103909,0.72,137.1,137.07,15.27535802]
[1765512105206,5.18659774,137.11,137.07,15.27535802]
[1765512105592,0.72,137.11,137.07,15.27535802]
[1765512105806,5.18659774,137.11,137.07,15.27535802]
[1765512106005,0.72,137.11,137.07,15.27535802]
[1765512106191,5.18659774,137.11,137.07,15.27535802]
[1765512106619,12.48031334,137.11,137.07,15.27535802]
[1765512106810,0.72,137.1,137.07,15.27535802]
[1765512108806,12.48031334,137.11,137.07,15.27535802]
[1765512109113,8.0137156,137.11,137.07,15.27535802]
[1765512109315,12.48031334,137.11,137.07,15.27535802]
[1765512109813,0.72,137.1,137.07,15.27535802]
[1765512112047,11.76031334,137.11,137.07,15.27535802]
[1765512112048,4.46659774,137.11,137.07,15.27535802]
[1765512112198,0.72,137.11,137.07,15.27535802]
[1765512112397,5.18659774,137.11,137.07,15.27535802]
[1765512113123,12.48007804,137.11,137.07,15.27535802]
[1765512115121,5.18659774,137.11,137.07,15.27535802]
[1765512118338,0.72,137.1,137.07,15.27535802]
[1765512118738,5.18659774,137.1,137.07,15.27535802]
[1765512120843,5.18659774,137.09,137.06,16.10585448]
[1765512121016,4.46659774,137.09,137.06,16.10585448]
[1765512121211,0.72,137.08,137.06,16.10585448]
[1765512122315,4.46659774,137.07,137.04,0.2]
[1765512122526,0.72,137.06,137.04,0.2]
[1765512123014,5.18659774,137.06,137.04,0.2]
[1765512124132,0.72,137.06,137.04,0.2]
[1765512127544,8.0161353,137.06,137.04,0.2]
[1765512127839,4.47355628,137.05,137.04,0.2]
[1765512128042,5.19355628,137.05,137.04,0.2]
[1765512129241,12.49016335,137.05,137.04,0.2]
[1765512137724,115.69016335,137.05,137.04,0.2]
[1765512137916,103.2,137.04,137.03,0.26598195]
[1765512138120,108.38355628,137.04,137.02,0.2]
[1765512138317,13.18355628,137.03,137.02,0.2]
[1765512139145,20.48122832,137.03,137.02,0.2]
[1765512139946,18.87320614,137.03,137.02,0.2]
[1765512140144,31.92029734,137.03,137.02,0.2]
[1765512142221,29.05476324,137.03,137.02,0.2]
[1765512142426,31.92029734,137.03,137.02,0.2]
[1765512147825,34.84245827,137.03,137.02,0.2]
[1765512149846,31.97692417,137.03,137.02,0.2]
[1765512150142,28.34476324,137.03,137.02,0.2]
[1765512150525,29.05476324,137.03,137.02,0.2]
[1765512152647,31.92029734,137.03,137.02,0.2]
[1765512152847,23.92029734,137.03,137.02,0.2]
[1765512153627,26.84224481,137.03,137.02,0.2]
[1765512155444,23.92029734,137.03,137.02,0.2]
[1765512156366,20.34476324,137.03,137.02,0.2]
[1765512156656,20.34476324,137.03,137.02,0.47]
[1765512157355,2.92152065,137.05,137.02,3.3355341]
[1765512157562,2.92152065,137.05,137.03,0.27]
[1765512157848,3.5755341,137.04,137.02,0.2]
[1765512158048,3.5755341,137.03,137.02,0.2]
[1765512158836,16.6226253,137.03,137.02,0.2]
[1765512159231,31.92029734,137.03,137.02,0.2]
[1765512159669,34.84245827,137.03,137.02,0.2]
[1765512164959,34.84272158,137.03,137.02,0.2]
[1765512181488,31.97692417,137.03,137.02,0.2]
[1765512181653,34.84272158,137.03,137.02,0.2]
[1765512183978,53.08690168,137.03,137.0,0.2]
[1765512184153,15.91288861,137.01,137.0,0.2]
[1765512184354,23.91288861,137.01,137.0,0.2]
[1765512184674,26.83526303,137.01,137.0,0.2]
[1765512185485,24.57288861,137.01,137.0,0.2]
[1765512185658,27.49526303,137.01,137.0,0.2]
[1765512186464,34.79400034,137.01,137.0,0.2]
[1765512186987,37.65979775,137.01,136.99,0.2]
[1765512187159,6.39159482,137.0,136.99,1e-08]
[1765512187478,103.2,136.99,136.97,1e-08]
[1765512187650,10.86579741,136.98,136.97,1e-08]
[1765512187850,11.52579741,136.98,136.97,1e-08]
[1765512188194,13.0470912,136.96,136.95,0.2]
[1765512188356,23.91288861,136.96,136.95,0.2]
[1765512188555,31.87429047,136.96,136.95,0.2]
[1765512188797,34.7979465,136.96,136.95,0.2]
[1765512189259,34.7979465,136.96,136.91,0.1]
[1765512189260,53.33577431,136.96,136.91,0.1]
[1765512189590,18.77868602,136.92,136.91,0.1]
[1765512189876,26.77868602,136.92,136.91,0.1]
[1765512190174,30.36341091,136.92,136.91,0.1]
[1765512190482,37.66694582,136.92,136.91,0.1]
[1765512191195,37.95126896,136.92,136.9,0.1]
[1765512191405,3.52579741,136.91,136.9,0.1]
[1765512191591,2.86579741,136.91,136.9,0.1]
[1765512191784,2.86579741,136.91,136.9,0.37]
[1765512192192,31.275351,136.92,136.9,0.37]
[1765512192506,31.21642352,136.92,136.9,0.37]
[1765512192804,31.21642352,136.92,136.91,0.27]
[1765512193703,21.18270267,136.93,136.91,0.27]
[1765512193704,7.30314423,136.93,136.91,0.27]
[1765512194628,2.92365603,136.95,136.91,0.27]
[1765512194787,29.11806341,136.97,136.91,19.24980826]
[1765512194971,106.06579741,136.98,136.92,11.94574233]
[1765512195177,106.06579741,136.98,136.92,9.07994492]
[1765512195393,106.06579741,136.98,136.93,0.27]
[1765512195394,2.86579741,136.96,136.93,0.27]
[1765512195599,7.30193501,136.95,136.93,0.27]
[1765512197712,2.86579741,136.97,136.93,0.27]
[1765512198004,10.16683027,136.97,136.93,9.07994492]
[1765512198210,10.16683027,136.97,136.93,0.27]
[1765512198508,2.86579741,136.96,136.94,0.27]
[1765512199010,2.86579741,136.96,136.91,7.30391543]
[1765512199218,2.86579741,136.96,136.93,0.27]
[1765512200205,10.16766571,136.96,136.93,0.27]
[1765512201998,11.78261004,136.96,136.93,0.27]
[1765512204901,11.78258949,136.96,136.93,0.27]
[1765512205085,12.44258949,136.96,136.93,0.27]
[1765512205781,5.14072119,136.95,136.91,0.27]
[1765512206088,7.3018683,136.96,136.92,4.75072119]
[1765512206409,15.30097724,136.97,136.93,0.27]
[1765512206812,15.30097724,136.97,136.93,4.75072119]
[1765512207186,15.96097724,136.97,136.94,0.27]
[1765512207584,20.44169843,136.97,136.91,7.30393271]
[1765512207782,20.44169843,136.97,136.94,0.27]
[1765512208818,20.44169843,136.97,136.93,0.27]
[1765512209203,15.96097724,136.97,136.93,0.27]
[1765512209385,15.30097724,136.97,136.93,0.27]
[1765512209792,15.30097724,136.97,136.93,4.75072119]
[1765512210105,15.30097724,136.97,136.94,0.27]
[1765512211709,15.96097724,136.97,136.94,0.27]
[1765512211904,20.44169843,136.97,136.94,0.27]
[1765512212098,0.66,136.96,136.92,16.3832891]
[1765512212311,5.14072119,136.96,136.93,0.27]
[1765512212913,0.66,136.96,136.93,0.27]
[1765512214311,7.96171901,136.96,136.93,0.27]
[1765512215886,7.96171901,136.96,136.92,11.05420153]
[1765512218093,7.30171901,136.96,136.92,11.05420153]
[1765512218912,7.30171901,136.96,136.93,4.48072119]
[1765512219285,7.96171901,136.96,136.93,4.48072119]
[1765512222018,7.96171901,136.96,136.92,7.30348034]
[1765512222317,7.96171901,136.96,136.93,4.48072119]
[1765512222732,15.30134326,136.97,136.93,11.78368698]
[1765512223102,8.00134326,136.97,136.93,11.78368698]
[1765512223506,7.30134326,136.97,136.94,4.48072119]
[1765512223729,110.50052114,136.98,136.95,4.48072119]
[1765512223928,29.04709889,136.99,136.95,4.48072119]
[1765512224112,21.04709889,136.99,136.95,4.48072119]
[1765512224500,20.34709889,136.99,136.96,4.48072119]
[1765512225722,21.04709889,136.99,136.96,4.48072119]
[1765512229747,20.34709889,136.99,136.96,4.48072119]
[1765512229921,8.0,137.01,136.96,4.48072119]
[1765512229922,13.7470912,137.02,136.98,4.48072119]
[1765512230128,13.0470912,137.02,136.98,4.48072119]
[1765512230312,13.7470912,137.02,136.98,4.48072119]
[1765512230508,7.2977491,137.03,137.01,4.48072119]
[1765512232709,7.2977491,137.03,137.0,4.48072119]
[1765512232710,0.7,137.02,137.0,4.48072119]
[1765512232915,0.7,137.02,136.99,12.48072119]
[1765512233117,7.2977491,137.03,137.0,4.48072119]
[1765512233433,7.2977491,137.03,137.01,4.48072119]
[1765512234011,7.2977491,137.03,136.99,19.7804117]
[1765512234536,7.29713952,137.04,137.0,11.77990908]
[1765512234713,116.2470912,137.05,137.01,4.48072119]
[1765512235234,103.9,137.05,137.01,4.48072119]
[1765512235639,5.18072119,137.04,136.99,8.0]
[1765512236142,5.18072119,137.03,136.99,8.0]
[1765512236532,12.47889615,137.03,136.99,8.0]
[1765512236738,0.7,137.02,136.99,8.0]
[1765512237431,11.77889615,137.03,136.99,8.0]
[1765512237636,12.47889615,137.03,136.99,8.0]
[1765512240544,11.77889615,137.03,136.99,8.0]
[1765512240742,7.99831452,137.02,136.99,8.0]
[1765512241143,4.48072119,137.0,136.95,12.48072119]
[1765512241342,4.48072119,137.0,136.95,8.0]
[1765512241538,0.7,136.99,136.95,8.0]
[1765512241742,0.7,136.99,136.95,15.30156265]
[1765512242623,8.00006888,136.99,136.95,15.30156265]
[1765512242828,8.00006888,136.99,136.95,8.0]
[1765512243142,0.7,136.98,136.95,8.0]
[1765512243343,0.7,136.98,136.95,12.47825479]
[1765512243644,8.00006888,136.99,136.95,8.0]
[1765512244344,8.00006888,136.99,136.95,15.301894]
[1765512246046,0.7,136.98,136.94,4.47825479]
[1765512246245,0.7,136.98,136.93,19.78107404]
[1765512247238,0.7,136.98,136.94,11.7806467]
[1765512247547,110.49887663,137.01,136.97,4.47825479]
[1765512247750,103.2,137.01,136.99,4.47825479]
[1765512247962,7.29839728,137.02,136.99,4.47825479]
[1765512248151,7.99839728,137.02,136.98,8.80994492]
[1765512248353,7.99839728,137.02,136.98,13.28819971]
[1765512248547,0.7,137.02,136.99,4.47825479]
[1765512248735,7.29729297,137.04,137.0,4.47825479]
[1765512249136,7.99729297,137.04,137.0,4.47825479]
[1765512250158,7.29729297,137.04,137.01,4.47825479]
[1765512250340,13.7470912,137.06,137.02,4.47825479]
[1765512250534,7.99568344,137.07,137.03,4.47825479]
[1765512251354,7.99568344,137.07,137.02,12.47825479]
[1765512251355,0.7,137.06,137.02,12.47825479]
[1765512252331,7.99632247,137.06,137.02,12.47825479]
[1765512252555,13.0470912,137.09,137.05,4.47825479]
[1765512252753,0.7,137.09,137.07,4.47825479]
[1765512252933,0.2,137.1,137.08,4.47825479]
[1765512254685,0.2,137.1,137.07,11.77367744]
[1765512254843,8.21394932,137.1,137.05,8.0]
[1765512255162,8.21394932,137.1,137.06,4.47825479]
[1765512255359,0.68,137.09,137.06,4.47825479]
[1765512256358,7.97458367,137.09,137.06,4.47825479]
[1765512256752,7.97458367,137.09,137.05,4.47825479]
[1765512256753,0.68,137.08,137.05,4.47825479]
[1765512256938,0.68,137.08,137.04,12.47825479]
[1765512257831,0.68,137.08,137.04,8.0]
[1765512258037,0.68,137.08,137.04,12.47825479]
[1765512258257,7.29554242,137.07,137.04,12.47825479]
[1765512258630,0.88,137.1,137.05,8.80994492]
[1765512258830,0.88,137.1,137.06,4.47825479]
[1765512259044,0.68,137.09,137.06,4.47825479]
[1765512261157,7.97458358,137.09,137.05,7.29638907]
[1765512261357,30.68903357,137.09,137.04,12.47825479]
[1765512261657,0.68,137.08,137.04,12.47825479]
[1765512261862,7.97532074,137.08,137.04,12.47825479]
[1765512262266,0.68,137.07,137.04,12.47825479]
[1765512262455,0.68,137.07,137.04,8.0]
[1765512262642,4.47825479,137.06,137.01,12.47825479]
[1765512263055,0.68,137.05,137.01,12.47825479]
[1765512263565,0.68,137.05,137.02,4.47825479]
[1765512263869,7.29713952,137.04,137.0,2.86401158]
[1765512264043,10.1611511,137.04,136.99,18.16345842]
[1765512264246,0.68,137.03,136.99,8.0]
[1765512264445,3.54401158,137.03,136.99,8.0]
[1765512264877,0.68,137.03,136.99,10.86401158]
[1765512265080,0.68,137.02,136.99,8.0]
[1765512265738,0.68,137.02,136.99,10.86401158]
[1765512265946,7.97828128,137.02,136.99,8.0]
[1765512266974,7.29828128,137.02,136.99,8.0]
[1765512267273,7.97828128,137.02,136.99,8.0]
[1765512267859,7.29828128,137.02,136.99,8.0]
[1765512268069,0.68,137.01,136.99,8.0]
[1765512268380,0.68,137.01,136.97,7.30069161]
[1765512268557,0.68,137.01,136.97,10.86401158]
[1765512268757,0.68,137.01,136.97,8.0]
[1765512268971,3.54401158,137.01,136.97,8.0]
[1765512269354,0.68,137.0,136.96,7.30136408]
[1765512269855,7.29917639,137.01,136.97,2.86401158]
[1765512270182,0.68,137.01,136.98,2.86401158]
[1765512270398,0.68,137.01,136.97,11.6739565]
[1765512270399,7.97889217,137.01,136.97,11.6739565]
[1765512270680,7.97889217,137.01,136.96,7.30136408]
[1765512270886,0.68,137.0,136.96,7.30136408]
[1765512271092,0.68,137.0,136.96,2.86401158]
[1765512271262,0.68,137.0,136.96,7.30139118]
[1765512271466,0.68,137.0,136.96,10.16540276]
[1765512271660,7.97940545,137.0,136.96,10.16540276]
[1765512271860,13.0470912,137.02,136.97,11.6739565]
[1765512272055,13.7270912,137.02,136.98,2.86401158]
[1765512272294,21.0253171,137.02,136.98,2.86401158]
[1765512272497,0.68,137.01,136.97,8.80994492]
[1765512272979,0.68,137.01,136.98,2.86401158]
[1765512273154,0.68,137.01,136.98,10.16434739]
[1765512273353,0.68,137.01,136.98,15.30033581]
[1765512273580,111.17784527,137.03,136.98,15.30033581]
[1765512273784,0.68,137.02,136.98,18.16434739]
[1765512274976,7.29784527,137.03,136.99,11.6739565]
[1765512275385,7.29784527,137.03,137.0,2.86401158]
[1765512275882,7.29721603,137.04,137.0,2.86401158]
[1765512276083,7.97721603,137.04,137.0,2.86401158]
[1765512277687,0.68,137.03,136.99,16.10967782]
[1765512277860,0.68,137.03,136.99,18.9736894]
[1765512278678,0.68,137.03,136.98,10.86401158]
[1765512278878,3.54401158,137.03,136.98,10.86401158]
[1765512279261,0.68,137.02,136.98,10.86401158]
[1765512279457,0.68,137.02,136.98,18.16418062]
[1765512279688,7.97837284,137.02,136.98,18.16418062]
[1765512280582,7.97837284,137.02,136.99,2.86401158]
[1765512280764,7.97783544,137.03,137.0,2.86401158]
[1765512280957,7.97783544,137.03,136.99,11.67404972]
[1765512281157,0.68,137.02,136.99,11.67404972]
[1765512282985,7.98729188,137.04,137.0,2.8641048]
[1765512283166,7.98729188,137.04,137.01,2.8641048]
[1765512283480,7.29729188,137.04,137.01,2.8641048]
[1765512283671,0.69,137.03,137.01,2.8641048]
[1765512284480,0.69,137.03,137.0,7.29921142]
[1765512284722,7.98729188,137.04,137.0,10.16331622]
[1765512285176,7.29729188,137.04,137.0,10.16331622]
[1765512285374,0.69,137.03,137.0,10.16331622]
[1765512285576,7.98789307,137.03,136.99,11.67404972]
[1765512286188,0.69,137.02,136.99,18.97370488]
[1765512287885,7.98827226,137.02,136.98,18.16435995]
[1765512288287,0.69,137.01,136.98,18.16435995]
[1765512289167,0.69,137.01,136.98,15.30025515]
[1765512289366,7.98887367,137.01,136.98,8.0]
[1765512289590,7.98887367,137.01,136.98,10.8641048]
[1765512290381,0.69,137.01,136.98,18.16427939]
[1765512291694,0.69,137.01,136.98,10.8641048]
[1765512293806,0.69,137.01,136.96,0.28432314]
[1765512293807,7.98897061,137.01,136.96,10.1653352]
[1765512293998,10.85307541,137.01,136.96,18.1653352]
[1765512294181,0.69,137.0,136.96,18.1653352]
[1765512295297,7.98954262,137.0,136.96,18.1653352]
[1765512295484,0.69,137.0,136.96,18.1653352]
[1765512295681,0.69,137.0,136.97,2.8641048]
[1765512297203,0.69,137.0,136.97,18.97490435]
[1765512300305,7.98931708,137.0,136.96,15.30125607]
[1765512300505,7.98931708,137.0,136.96,10.8641048]
[1765512300806,0.69,136.99,136.95,16.80994492]
[1765512301485,0.69,136.99,136.95,8.80994492]
[1765512301690,7.9900396,136.99,136.95,16.80994492]
[1765512301893,7.9900396,136.99,136.95,26.97587877]
[1765512302191,0.69,136.98,136.95,26.97587877]
[1765512303379,0.69,136.98,136.95,24.11177397]
[1765512310109,0.69,137.01,136.97,8.80994492]
[1765512310311,0.69,137.01,136.98,11.67404972]
[1765512311495,0.69,137.01,136.98,8.80994492]
[1765512313611,0.69,137.01,136.98,11.67404972]
[1765512316719,0.69,137.01,136.98,8.80994492]
[1765512317811,0.69,137.01,136.98,16.11026288]
[1765512318120,103.2,137.03,137.0,8.80994492]
[1765512318337,0.66,137.05,137.01,10.8641048]
[1765512318923,2.8641048,137.04,137.0,8.80994492]
[1765512319222,2.86464921,137.04,137.0,8.80994492]
[1765512319517,0.66,137.03,136.99,8.80994492]
[1765512319716,0.66,137.03,136.99,11.67459413]
[1765512320310,7.958108,137.03,136.99,18.97436188]
[1765512320693,0.66,137.02,137.0,2.86464921]
[1765512321311,7.29732232,137.04,137.0,2.86464921]
[1765512321523,7.95732232,137.04,137.01,10.86464921]
[1765512321716,0.66,137.04,137.02,2.86464921]
[1765512322718,0.66,137.04,137.01,10.86464921]
[1765512323600,7.95741744,137.04,137.01,8.0]
[1765512324126,0.66,137.03,137.01,8.0]
[1765512324624,7.95796247,137.03,136.97,0.28432314]
[1765512324805,7.95796247,137.03,136.98,12.47546522]
[1765512325007,0.66,137.02,136.98,19.77578599]
[1765512326430,7.95843524,137.02,136.98,19.77578599]
[1765512326821,0.66,137.01,136.98,19.77578599]
[1765512327834,0.66,137.01,136.98,12.47546522]
[1765512328001,5.13546522,137.01,136.93,24.34686344]
[1765512328203,5.13546522,137.01,136.96,8.80994492]
[1765512328400,7.95927007,137.0,136.96,20.58677893]
[1765512328824,0.66,136.99,136.96,16.11131371]
[1765512329529,25.54371624,137.02,136.96,20.58677893]
[1765512329745,0.66,137.01,136.97,4.47546522]
[1765512330036,0.66,137.01,136.97,12.47546522]
[1765512330930,0.66,137.01,136.98,4.47546522]
[1765512332230,7.95875079,137.01,136.98,4.47546522]
[1765512333613,7.29875079,137.01,136.97,19.77602377]
[1765512333816,7.95827716,137.02,136.98,20.58567609]
[1765512334019,0.66,137.02,136.98,20.58567609]
[1765512335839,7.95784059,137.03,136.99,4.47546522]
[1765512336009,7.29784059,137.03,137.0,8.0]
[1765512336210,0.66,137.02,137.0,8.0]
[1765512339738,111.2,137.05,137.0,8.0]
[1765512339739,111.15680101,137.05,137.0,19.77456773]
[1765512340229,110.49680101,137.05,137.01,4.47546522]
[1765512340426,0.66,137.04,137.01,4.47546522]
[1765512340636,0.66,137.04,137.01,11.77417006]
[1765512340928,0.66,137.04,137.02,4.47546522]
[1765512341137,7.95725454,137.04,137.0,15.29907282]
[1765512341340,7.95725454,137.04,137.0,8.0]
[1765512341536,0.66,137.03,137.0,8.0]
[1765512343026,0.66,137.03,137.0,12.47546522]
[1765512343218,0.66,137.03,137.0,19.77471575]
[1765512344232,0.66,137.03,137.0,15.29925053]
[1765512344433,0.66,137.03,137.0,19.77471575]
[1765512344616,0.66,137.03,137.0,15.29925053]
[1765512344817,0.66,137.03,137.0,19.77471575]
[1765512346344,0.66,137.03,137.0,12.47546522]
[1765512347349,7.95769799,137.03,137.0,12.47546522]
[1765512347544,7.95769799,137.03,137.0,8.0]
[1765512347722,0.7,137.02,137.0,8.0]
[1765512348947,0.7,137.02,137.0,12.47546522]
[1765512357650,0.7,137.02,137.0,12.47502631]
[1765512359050,0.7,137.02,137.0,8.0]
[1765512362443,7.297353,137.04,137.01,4.47502631]
[1765512362757,7.997353,137.04,137.01,4.47502631]
[1765512362945,0.7,137.03,137.0,19.77428244]
[1765512364367,4.47502631,137.01,136.96,6.08979093]
[1765512364533,4.47502631,137.01,136.96,8.80994492]
[1765512364854,18.22211751,137.0,136.95,8.80994492]
[1765512365358,0.7,136.99,136.95,8.80994492]
[1765512365744,0.7,136.99,136.95,13.28497123]
[1765512365947,0.7,136.99,136.95,20.5868497]
[1765512366147,0.7,136.99,136.95,16.11182339]
[1765512366348,0.7,136.99,136.95,20.5868497]
[1765512366554,8.00013555,136.99,136.95,20.5868497]
[1765512366941,0.7,136.98,136.95,20.5868497]
[1765512369647,0.7,136.98,136.95,13.28497123]
[1765512370063,0.7,136.98,136.94,15.30231339]
[1765512370064,12.47551937,136.98,136.94,8.0]
[1765512370447,5.17502631,136.97,136.94,8.0]
[1765512370850,0.7,136.96,136.92,21.28497123]
[1765512371166,0.7,136.96,136.93,4.47502631]
[1765512371465,0.7,136.96,136.92,28.58815289]
[1765512374863,12.47674427,136.96,136.92,8.0]
[1765512375061,4.47502631,136.95,136.91,8.80994492]
[1765512375266,5.18502631,136.95,136.91,8.80994492]
[1765512375467,0.71,136.94,136.91,8.80994492]
[1765512376166,0.71,136.94,136.9,8.1]
[1765512376368,5.18502631,136.94,136.9,8.1]
[1765512376571,12.48781003,136.94,136.9,8.1]
[1765512376750,0.71,136.93,136.9,8.1]
[1765512378043,7.30278372,136.94,136.91,4.47502631]
[1765512378248,0.71,136.99,136.94,8.80994492]
[1765512378561,8.01006979,136.99,136.94,24.11204498]
[1765512378760,8.01006979,136.99,136.95,4.47502631]
[1765512378971,0.71,136.98,136.95,4.47502631]
[1765512379267,0.71,136.98,136.94,24.11204498]
[1765512379457,0.71,136.98,136.95,4.47502631]
[1765512379971,0.71,136.98,136.94,24.11204498]
[1765512380171,0.71,136.98,136.94,28.58707129]
[1765512380365,8.01064151,136.98,136.94,28.58707129]
[1765512380548,8.01064151,136.98,136.94,8.0]
[1765512380749,5.12502631,136.97,136.92,8.0]
[1765512381262,5.12502631,136.96,136.9,12.57502631]
[1765512381454,17.52211751,136.95,136.9,12.57502631]
[1765512381659,18.17211751,136.95,136.9,12.57502631]
[1765512381863,13.0470912,136.91,136.9,0.1]
[1765512382057,0.65,136.94,136.9,0.1]
[1765512382058,4.47502631,136.93,136.9,0.1]
[1765512382289,7.30353491,136.92,136.9,0.1]
[1765512382569,7.95353491,136.92,136.9,0.1]
[1765512382762,0.65,136.91,136.9,0.1]
[1765512384868,7.95406836,136.91,136.9,0.1]
[1765512385369,0.65,136.91,136.9,0.1]
[1765512385672,0.65,136.92,136.9,0.1]
[1765512385972,0.65,136.91,136.9,0.1]
[1765512387778,7.95406836,136.91,136.9,0.1]
[1765512388757,10.82280806,136.91,136.9,0.1]
[1765512389571,7.95406836,136.91,136.9,0.1]
[1765512389755,23.86989926,136.91,136.9,0.1]
[1765512390068,21.00115956,136.91,136.9,0.1]
[1765512390657,7.95406836,136.91,136.9,0.1]
[1765512397580,7.95367451,136.92,136.9,0.1]
[1765512398078,7.30367451,136.92,136.9,0.1]
[1765512398276,0.65,136.91,136.9,0.1]
[1765512398879,7.30367451,136.92,136.9,0.1]
[1765512399281,13.0470912,136.94,136.9,2.96925725]
[1765512399582,13.0470912,136.94,136.9,0.1]
[1765512399583,0.65,136.93,136.9,0.1]
[1765512399758,3.51925725,136.93,136.9,0.1]
[1765512400161,0.65,136.93,136.9,0.1]
[1765512401055,7.30296109,136.94,136.91,2.86925725]
[1765512401255,7.95296109,136.94,136.91,2.86925725]
[1765512403179,7.30296109,136.94,136.91,2.86925725]
[1765512403386,0.68,136.93,136.9,0.1]
[1765512403960,0.68,136.93,136.9,2.96925725]
[1765512404380,0.68,136.93,136.9,0.1]
[1765512404583,0.68,136.93,136.9,2.96925725]
[1765512404781,7.30296109,136.94,136.9,10.27384044]
[1765512404983,7.98296109,136.94,136.91,2.86925725]
[1765512405372,7.98296109,136.94,136.9,10.27384044]
[1765512406178,7.98296109,136.94,136.91,2.86925725]
[1765512406793,0.68,136.93,136.9,0.1]
[1765512407877,7.30353491,136.92,136.9,0.1]
[1765512408390,7.98353491,136.92,136.9,0.1]
[1765512411696,0.68,136.92,136.9,0.1]
[1765512413397,7.98356708,136.92,136.9,0.1]
[1765512413898,0.68,136.91,136.9,0.1]
[1765512414303,7.98356708,136.92,136.9,0.1]
[1765512414477,0.68,136.91,136.9,0.1]
[1765512415000,0.68,136.93,136.9,2.96925725]